Cogmind - Beta 13 @@@ ROGUE MODE // 2024.04.20 @ 16:06:49 Player: Pogmind Result: Destroyed self with Rocket Launcher Performance ------------- Evolutions (0) 0 Regions Visited (4) 800 Robots Destroyed (4) 20 Value Destroyed (118) 118 Prototype IDs (25) 500 Alien Tech Used (0) 0 Bonus (300) 300 TOTAL SCORE: 1738 Bonus ------- Aligned with FarCom 300 Cogmind --------- Core Integrity 0/250 Matter 119/300 Energy 125/125 System Corruption 6% Temperature Cool (0) Movement Rolling (80) Location -9/Mines Parts ------- > --- POWER (1) -------- Light Ion Engine > --- PROPULSION (2) --- Wheel Wheel > --- UTILITY (2) ------ Medium Storage Unit > --- WEAPON (2) ------- Medium Laser Rocket Launcher > --- INVENTORY (10) --- Aluminum Leg Heat Sink Small Storage Unit Large Matter Pod (150) 0b10 Alert Chip Targeting Computer EM Pulse Gun Peak State ------------ > --- POWER ------------ Ion Engine > --- PROPULSION ------- Light Treads Light Treads > --- UTILITY ---------- Medium Storage Unit Terrain Scanner > --- WEAPON ----------- Light Cannon Rocket Launcher > --- INVENTORY -------- Aluminum Leg Heat Sink Small Storage Unit Large Matter Pod 0b10 Alert Chip Targeting Computer EM Pulse Gun Medium Laser Mining Laser [Rating: 9] Favorites ----------- Power Ion Engine Engine Ion Engine Propulsion Light Treads Treads Light Treads Leg Aluminum Leg Wheel Wheel Utility Medium Storage Unit Device Terrain Scanner Storage Medium Storage Unit Weapon Light Cannon Energy Gun Medium Laser Ballistic Cannon Light Cannon Launcher Rocket Launcher Special Weapon Mining Laser Build | -11 -10 -10 -10 -9 ------- Run | Yrd Mat Min Exi Min Slots Evolved . | . . . . . Power . | . . . . . Propulsion . | . . . . . Utility . | . . . . . Weapon . | . . . . . Parts Attached 37 | 18 6 1 . 12 Power 7 | 4 1 . . 2 Engine 7 | 4 1 . . 2 Core . | . . . . . Reactor . | . . . . . Propulsion 12 | 6 . . . 6 Treads 5 | 3 . . . 2 Leg 4 | 3 . . . 1 Wheel 3 | . . . . 3 Hover . | . . . . . Flight . | . . . . . Utility 5 | 1 4 . . . Device 1 | . 1 . . . Storage 4 | 1 3 . . . Processor . | . . . . . Hackware . | . . . . . Protection . | . . . . . Artifact . | . . . . . Weapon 13 | 7 1 1 . 4 Energy Gun 8 | 7 . . . 1 Energy Cannon . | . . . . . Ballistic Gun . | . . . . . Ballistic Cannon 1 | . 1 . . . Launcher 2 | . . . . 2 Special Weapon 2 | . . 1 . 1 Impact Weapon . | . . . . . Slashing Weapon . | . . . . . Piercing Weapon . | . . . . . Special Melee Weapon . | . . . . . Unidentified Prototypes . | . . . . . Parts Lost 3 | . . . . 3 Power 1 | . . . . 1 Propulsion . | . . . . . Utility 1 | . . . . 1 Weapon 1 | . . . . 1 Highest Loss Streak 2 | . . . . 2 To Critical Strikes . | . . . . . Average Slot Usage (%) 96 | . 97 100 100 80 Engine 13 | . 14 14 14 13 Treads 27 | . 28 28 28 24 Device 11 | . 10 14 14 4 Storage 14 | . 15 14 14 14 Energy Gun 6 | . 26 . . 8 Ballistic Cannon 10 | . 1 14 14 4 Special Weapon 9 | . . 13 14 4 Naked Turns . | . . . . . Heaviest Build 23 | 13 23 21 20 23 Greatest Support 40 | 40 40 40 40 40 Greatest Overweight (x) 4 | 4 . . . 4 Average Overweight (x) . | . . . . . Largest Inventory Capacity 10 | 8 10 10 10 10 Average Capacity 9 | 7 9 10 10 10 Most Carried 10 | 4 10 10 10 10 Average Carried 8 | 2 6 9 9 8 Final Capacity 10 | 8 10 10 10 10 Final Carried 10 | 3 10 10 10 7 Class Distribution -------------------- 97% | Mutant Dominant Class ---------------- Mutant | -10/Materials Mutant | -10/Mines Mutant | -10/Exiles Mutant | -9/Mines Resources | -11 -10 -10 -10 -9 ----------- Run | Yrd Mat Min Exi Min Matter Collected 477 | 217 223 10 . 27 Remotely . | . . . . . Salvage Created 154 | . 148 . . 6 Parts 8 | . 8 . . . Haulers Intercepted . | . . . . . Recyclers Shooed . | . . . . . Parts Field Recycled . | . . . . . Retrieved Matter . | . . . . . Parts Self-Destructed . | . . . . . Prevented . | . . . . . Kills | -11 -10 -10 -10 -9 ------- Run | Yrd Mat Min Exi Min Combat Hostiles Destroyed 7 | . 3 . . 4 Guns 3 | . 3 . . . AOE 4 | . . . . 4 Classes Destroyed 3 | . 2 . . 1 Watcher 1 | . 1 . . . Grunt 3 | . 3 . . . Assembled 4 | . . . . 4 Best Kill Streak 3 | . 2 . . 3 Combat Bots Only 3 | . 1 . . 3 Max Kills in Single Turn 1 | . 1 . . 1 Gunslinging . | . . . . . Exploded 1 | . . . . 1 Melee . | . . . . . Uniques/NPCs Destroyed . | . . . . . Combat | -11 -10 -10 -10 -9 -------- Run | Yrd Mat Min Exi Min Hostile Shots Fired 41 | . 20 . . 21 Missed 11 | . 7 . . 4 Damage Taken 929 | . 148 . . 781 Core 253 | . 24 . . 229 Absorbed by Shields . | . . . . . Core Remaining (%) 100 | 100 . . . . Volleys Fired 34 | 3 14 3 . 14 Largest 2 | 2 2 1 . 1 Hottest 100 | 90 90 100 . 100 Shots Fired 51 | 6 28 3 . 14 Gun 34 | 6 28 . . . Cannon 3 | . . . . 3 Launcher 7 | . . . . 7 Special 7 | . . 3 . 4 Kinetic 3 | . . . . 3 Thermal 41 | 6 28 3 . 4 Explosive 7 | . . . . 7 Electromagnetic . | . . . . . Robot Hit Streak 9 | 1 9 . . 3 Robot Miss Streak 3 | 3 1 . . 2 Penetration Max . | . . . . . Secondary Targets . | . . . . . Shots Hit Robots 25 | 1 21 . . 3 Core Hits 17 | 1 7 . . 9 Critical Kills . | . . . . . Critical Parts Destroyed . | . . . . . Critical Strikes 1 | . 1 . . . Burn 1 | . 1 . . . Melee Attacks . | . . . . . Impact . | . . . . . Slashing . | . . . . . Piercing . | . . . . . Sneak Attacks . | . . . . . Combat Hostiles . | . . . . . Follow-up Attacks . | . . . . . Damage Inflicted 682 | 10 265 . . 407 Guns 275 | 10 265 . . . Cannons 15 | . . . . 15 Explosions 390 | . . . . 390 Melee . | . . . . . Ramming 2 | . . . . 2 Kinetic 15 | . . . . 15 Thermal 275 | 10 265 . . . Explosive 390 | . . . . 390 Electromagnetic . | . . . . . Impact . | . . . . . Slashing . | . . . . . Piercing . | . . . . . Highest Corruption 6 | . . . . 6 Average Corruption 6 | . . . . 6 Corruption Purged . | . . . . . Corruption Blocked . | . . . . . Effects 6 | . . . . 6 Message Errors 1 | . . . . 1 Matter Fused 2 | . . . . 2 Heat Flow Errors 1 | . . . . 1 Energy Discharges 1 | . . . . 1 Data Loss (major) 1 | . . . . 1 Overload Shots . | . . . . . Overflow Damage 9 | . . . . 9 Projectiles . | . . . . . Explosions 9 | . . . . 9 Melee . | . . . . . Knockbacks 2 | . . . . 2 Impact . | . . . . . Kinetic 1 | . . . . 1 Secondary 1 | . . . . 1 Self-Inflicted Damage 62 | . . . . 62 Shots 2 | . . . . 2 Rammed 2 | . . . . 2 Targets Rammed 2 | . . . . 2 Kicked . | . . . . . Crushed . | . . . . . Highest Temperature 240 | 30 240 60 . 83 Average Temperature 60 | 14 90 30 . 17 Received Heat Transfer 118 | . 78 . . 40 Siege Activations . | . . . . . Robots Corrupted . | . . . . . Combat Hostiles . | . . . . . Parts Fried . | . . . . . Impact Corruptions . | . . . . . Robots Melted . | . . . . . Combat Hostiles . | . . . . . Parts Melted . | . . . . . Heat Transferred 756 | 25 731 . . . Parts Sabotaged . | . . . . . Parts Stolen . | . . . . . Parts Stripped . | . . . . . Power Chain Reactions . | . . . . . Alert | -11 -10 -10 -10 -9 ------- Run | Yrd Mat Min Exi Min Peak Influence 152 | . 152 13 . 24 Initial 11 | . . 11 . . Average 18 | . 44 12 . 4 Maximum Alert Level . | . . . . . Low Security (%) 100 | 100 100 100 . 100 Level 1 . | . . . . . Level 2 . | . . . . . Level 3 . | . . . . . Level 4 . | . . . . . Level 5 . | . . . . . High Security . | . . . . . Max Security . | . . . . . Squads Dispatched 2 | . 2 . . . Investigation . | . . . . . Extermination . | . . . . . Reinforcement 2 | . 2 . . . Assault . | . . . . . Garrison . | . . . . . Intercept . | . . . . . Searches Triggered . | . . . . . Construction Impeded . | . . . . . Haulers Reinforced . | . . . . . Active Scanning Responses . | . . . . . Cargo Convoy Interrupts . | . . . . . Stealth | -11 -10 -10 -10 -9 --------- Run | Yrd Mat Min Exi Min Distress Signals 1 | . 1 . . . Communications Jammed . | . . . . . Distress Signals . | . . . . . Times Spotted 14 | . 8 . . 6 Peak Tracking Total 4 | . 3 . . 4 Tactical Retreats 4 | . 3 . . 1 Traps | -11 -10 -10 -10 -9 ------- Run | Yrd Mat Min Exi Min Traps Triggered . | . . . . . Indirectly . | . . . . . Trap Hack Attempts . | . . . . . Triggered . | . . . . . Disarmed . | . . . . . Reprogrammed . | . . . . . Reused . | . . . . . Traps Extracted . | . . . . . Installed . | . . . . . Triggered . | . . . . . Machines | -11 -10 -10 -10 -9 ---------- Run | Yrd Mat Min Exi Min Machines Disabled . | . . . . . Max in Single Turn . | . . . . . Machines Repaired . | . . . . . Machines Dismantled . | . . . . . Machines Sabotaged . | . . . . . Overloaded Fab Kills . | . . . . . Hacking | -11 -10 -10 -10 -9 --------- Run | Yrd Mat Min Exi Min Machines Accessed 11 | . 6 . 5 . Terminals 5 | . 5 . . . Fabricators . | . . . . . Repair Stations . | . . . . . Recycling Units 1 | . 1 . . . Scanalyzers . | . . . . . Garrison Access . | . . . . . Total Hacks 64 | . 14 . 50 . Successful 58 | . 8 . 50 . Failed 6 | . 6 . . . Catastrophic 1 | . 1 . . . Database Lockouts . | . . . . . Manual 11 | . 10 . 1 . Terminals 13 | . 13 . . . Fabricators . | . . . . . Repair Stations . | . . . . . Recycling Units 1 | . 1 . . . Scanalyzers . | . . . . . Garrison Access . | . . . . . Terminal Hacks 57 | . 7 . 50 . Record 49 | . . . 49 . Robot Analysis 2 | . 2 . . . Prototype ID Bank 1 | . 1 . . . Alert Level 1 | . 1 . . . Locate Traps 1 | . 1 . . . Zone Layout 2 | . 2 . . . Derelict Proto ID Bank 1 | . . . 1 . Fabricator Hacks . | . . . . . Repair Station Hacks . | . . . . . Recycling Unit Hacks 1 | . 1 . . . Report Inventory 1 | . 1 . . . Scanalyzer . | . . . . . Garrison Access Hacks . | . . . . . Unauthorized Hacks . | . . . . . Terminals . | . . . . . Fabricators . | . . . . . Repair Stations . | . . . . . Recycling Units . | . . . . . Scanalyzers . | . . . . . Garrison Access . | . . . . . Data Cores Recovered . | . . . . . Used . | . . . . . Hacking Detections 4 | . 4 . . . Full Trace Events . | . . . . . Feedback Events . | . . . . . Feedback Blocked . | . . . . . Robot Schematics Acquired . | . . . . . Robots Built . | . . . . . Authchips . | . . . . . Time . | . . . . . Total Robot Build Rating . | . . . . . Part Schematics Acquired . | . . . . . Parts Built . | . . . . . Authchips . | . . . . . Time . | . . . . . Total Part Build Rating . | . . . . . Parts Repaired . | . . . . . Time . | . . . . . Parts Recycled . | . . . . . Recycled Matter . | . . . . . Retrieved Matter . | . . . . . Retrieved Components . | . . . . . Parts Scanalyzed . | . . . . . Part Schematics Acquired . | . . . . . Parts Damaged . | . . . . . Bothacking | -11 -10 -10 -10 -9 ------------ Run | Yrd Mat Min Exi Min Used RIF Installer . | . . . . . Robots Hacked . | . . . . . Non-combat . | . . . . . Combat . | . . . . . Robot Hacks Applied . | . . . . . Relay Couplers Released . | . . . . . Fabnet Peak Effective % . | . . . . . Robots Rewired . | . . . . . Allies Hacked . | . . . . . Hacks Repelled . | . . . . . Allies | -11 -10 -10 -10 -9 -------- Run | Yrd Mat Min Exi Min Total Allies . | . . . . . Largest Group . | . . . . . Highest-Rated Group . | . . . . . Highest-Rated Ally . | . . . . . Total Orders . | . . . . . Ally Attacks . | . . . . . Total Damage . | . . . . . Kills . | . . . . . Allies Corrupted . | . . . . . Allies Melted . | . . . . . Intel | -11 -10 -10 -10 -9 ------- Run | Yrd Mat Min Exi Min Robot Analysis Total 2 | . 2 . . . Derelict Logs Recovered 1 | . . . . 1 Drone Launches . | . . . . . Drone Recoveries . | . . . . . Exploration | -11 -10 -10 -10 -9 ------------- Run | Yrd Mat Min Exi Min Turns Passed 3023 | 456 539 183 1496 349 Spaces Moved 1738 | 239 286 106 933 174 Core 57 | 56 . . . 1 Treads 1541 | 92 286 106 933 124 Legs 91 | 91 . . . . Wheels 49 | . . . . 49 Hover . | . . . . . Flight . | . . . . . Fastest Speed 50 | 50 160 160 160 80 Average Speed 157 | 154 160 160 160 141 Slowest Speed 250 | 250 160 160 160 250 Overloaded Moves . | . . . . . Propulsion Burnouts . | . . . . . Robots Hopped . | . . . . . Cave-ins Triggered 1 | . . . . 1 Exploration Rate (%) 38 | 8 42 32 93 15 Regions Visited 4 Branch Regions 3 Pre-discovered Areas 1 | . . . 1 . Known Exits Taken . | . . . . . Unknown Exits Taken 4 | 1 1 1 1 . Scrap Searched 1 | . . 1 . . Spaces Dug 19 | . . 2 . 17 Terrain Destroyed 76 | . . 2 . 74 Melee . | . . . . . Projectile 6 | . . 2 . 4 AOE 70 | . . . . 70 Terrain Rammed . | . . . . . Walls Destroyed . | . . . . . Machines Disabled . | . . . . . Actions | -11 -10 -10 -10 -9 --------- Run | Yrd Mat Min Exi Min Total 1960 | 316 342 111 937 254 Wait 116 | 48 21 . 1 46 Move 1734 | 238 285 105 932 174 Hop . | . . . . . Pick Up 17 | 5 9 1 2 . Fast Attach 10 | 5 2 . . 3 Attach 12 | 4 3 . . 5 Detach 8 | 3 4 . . 1 Swap 15 | 9 1 1 . 4 Drop 12 | 1 3 1 2 5 Fire 34 | 3 14 3 . 14 Melee . | . . . . . Ram . | . . . . . Kick . | . . . . . Crush 2 | . . . . 2 Escape Stasis . | . . . . . Rewire . | . . . . . Trap . | . . . . . Miscellaneous . | . . . . . Route ------- -11/Scrapyard -10/Materials (discovered 3 exits: [*Mat x2] / [*Min]) -10/Mines -10/Exiles (discovered 2 exits: [*Min x2]) -9/Mines History --------- Turn | Location | Event 40 | -11/Scrapyard | Discovered new exit (range 16) 457 | -11/Scrapyard | Entered Materials 458 | -10/Materials | Build established: Mutant 576 | -10/Materials | Discovered new exit (range 17) 806 | -10/Materials | Discovered new exit (range 16) 960 | -10/Materials | Discovered new exit (range 16) 996 | -10/Materials | Entered Mines 1124 | -10/Mines | Received a Rocket Launcher from a helpful Derelict 1171 | -10/Mines | Deemed a non-threat by the Exiles lab entrance 1171 | -10/Mines | Discovered new exit (range 5) 1179 | -10/Mines | Entered Exiles 1207 | -10/Exiles | Discovered new exit (range 15) 1223 | -10/Exiles | Met 8R-AWN 1258 | -10/Exiles | Met EX-HEX 1343 | -10/Exiles | Met EX-BIN 1368 | -10/Exiles | Aligned with FarCom system 1370 | -10/Exiles | Given EX-Vault access code 1619 | -10/Exiles | Met EX-DEC 1652 | -10/Exiles | Learned location of Zion (-7) 1777 | -10/Exiles | Opened EX-Vault 1789 | -10/Exiles | Found 0b10 Alert Chip 1865 | -10/Exiles | Warned to stay clear of 0b10 Research branches 2067 | -10/Exiles | Discovered new exit (range 14) 2197 | -10/Exiles | Visited The Gauntlet 2675 | -10/Exiles | Left Exiles lab with 0b10 Alert Chip 2675 | -10/Exiles | Entered Mines 2681 | -9/Mines | Assembled infested the area 2686 | -9/Mines | Assisted by a Guerilla fighting off Assembled 2731 | -9/Mines | Learned Materials security intel 2793 | -9/Mines | Crushed by falling debris 2793 | -9/Mines | Core integrity fell below 50% 2793 | -9/Mines | Core integrity fell below 20% 3024 | -9/Mines | Destroyed self with Rocket Launcher Last Messages --------------- 02811_ The unstable cave ceiling collapses. 02822_ System corrupted: Matter fused (-9). 02822_ The unstable cave ceiling collapses. 02847_ System corrupted: Substantial component data lost. 02865_ System corrupted: Heat flow error (+103). 02893_ System corrupted: Matter fused (-8). 02936_ System corrupted: Energy discharge (-50). 02939_ The unstable cave ceiling collapses. 02947_ U-05 Engineer builds a Wall. 02950_ Acquired 19 matter. 02955_ Dropped Ion Engine. 02957_ U-05 Engineer builds a Wall. 02957_ Acquired Lgt. Ion Engine. 02959_ Dropped Lgt. Treads. 02960_ Acquired Lgt. Treads. 02964_ Acquired Wheel. 02978_ 9SI2KMF 1GAB 7PM3T 2N7BFTV2=B7U G&JA/5 03008_ Acquired 8 matter. 03014_ Dropped Lgt. Treads. 03024_ as-62515 destroyed. Map ----- +----------------------------------------------------+ | ??## #??????????????????????????????? | | ???## ##??????????????????????????????? | | ????### ###???????????????????????????????? | | ??????## ##?????????????????????????????????? | | ???????## #??#???????????????????????????????? | | ????????## #???#??????????????????????????????? | | ?????????# #?????#????????????????????????????? | | ?????????# #??????????????????????????????????? | | ?#??????## #?#????????????????????????????????? | | ???????## #??#???#???????????????????????????? | | ???????# #??????????????????????????????????? | | ??#????# #?????????#????????????????????????? | | ?????### #??????????????????????????????????? | | ?????#"# ##?????????????????????????????????? | | ??#??## #?????????????????????????????????? | | ???#?##| ###?##?#??????????????????????????? | | ???#??## ## ##???#??#??????# ????????????? | | #??????# ##????????????? ?????????????? | | ???????## #??#????????? %??????????????? | | ??#?????## # #????????? ? #???###?????????? | | ????#????#### # # #?????????? #?? ##????????? | | ??##?????# # # #????#???? ## = ???????? | | #?????????# # #######???### ;# ???????? | | #????????# # #### % "???????? | | ??#??????# ###### ! %% "???????? | | ?????????# #=* @k% %= = "???????? | | ?????????## ###### %** %%* = ??????? | | ??????????## ## ###????? ## % |%| ##????????? | | ??#????????###?##??????? ##?? ! ?????????? | | ??????? ???????????????### ##????##???????????? | | ?????????????????????????####??????????????????? | | ????????????????????#? ????????????????????????? | | ???????????????????????????????????????????????? | | ????????? ?????????????????????????????????????? | | ??????????????? ???????????????????????????????? | | ???????????????????????????????????????????????? | | ???????????? ??????? ??????????????????????????? | | ???????????????????????????????????????????????? | | ???????????????????????????????????????????????? | | ???????????????????????????????????????????????? | | ???????????????????????????????????????????????? | | ???????????????????????????????????????????????? | | ???????????????????????????????????????????????? | | ???????????????????????????????????????????????? | | ???????????????????????????????????????????????? | | ???????????????????????????????????????????????? | | ???????????????????????????????????????????????? | | ???????????????????????????????????????????????? | | ???????????????????????????????????????????????? | | ???????????????????????????????????????????????? | +----------------------------------------------------+ Best States ------------- Heat Dissipation 25 Energy Generation 10 Energy Capacity 250 Matter Stores 300 Matter Capacity 300 Sight Range 16 Terrain Scan Range 14 Terrain Scan Density 10 Evasion (%) 55 Recoil Reduction 2 Item Schematics ----------------- None Robot Schematics ------------------ None Fabricated ------------ Nothing Alien Tech Used ----------------- None Achievements -------------- None Challenges ------------ None Game ------ Seed DefenseLightShifter Manual? 0 Play Time 01:17:57 Cumulative 8.0 hours Start 2024.04.18 @ 22:03:10 End 2024.04.20 @ 16:06:49 Sessions 4 Manual Loads 0 Difficulty Rogue Special Mode None Game No. 11 Rogue 11 Adventurer 0 Explorer 0 Win Type - Total 0 Types 0/0/0/0/0/0/0/0/0 Lore% 14 Gallery% 14 Achievement% 13 Wizard Run 0 Options --------- Layout 0 ASCII 0 Keyboard 0 Movement Numpad Keybinds 0 Fullscreen 1 Font 18/SmallcapsGlow Map View 76x50 Zoom Use 6% Tactical HUD 1 Map Filters NONE Filters NONE Steam 1 RUN: 5d828868-a805-4bf6-9b95-233ee654f0fd